Cogmind - Beta 16 *** ADVENTURER MODE // 2025.12.20 @ 00:22:09 Player: Shintak Result: Destroyed by S-10 Pest with Light Assault Rifle Performance ------------- Evolutions (0) 0 Regions Visited (1) 200 Robots Destroyed (14) 70 Value Destroyed (276) 276 Prototype IDs (0) 0 Alien Tech Used (0) 0 Bonus (0) 0 TOTAL SCORE: 546 Bonus ------- None Cogmind --------- Core Integrity 0/250 Matter 285/300 Energy 350/350 System Corruption 0% Temperature Cool (0) Movement Core (1400) Ox27 Location -10/Materials Parts ------- > --- POWER (1) -------- (None) > --- PROPULSION (2) --- (None) > --- UTILITY (2) ------ Huge Storage Unit High-capacity Battery > --- WEAPON (2) ------- (None) > --- INVENTORY (25) --- Ion Engine Improved Heat Sink Large Matter Pod (126) Structural Scanner Structural Scanner Light Armor Plating Light Armor Plating Peak State ------------ > --- POWER ------------ Light Nuclear Core > --- PROPULSION ------- Hover Unit Flight Unit > --- UTILITY ---------- Improved Heat Sink Targeting Computer > --- WEAPON ----------- Light Assault Rifle > --- INVENTORY -------- Ion Engine Ion Engine Sensor Array Light Armor Plating Light Armor Plating [Rating: 10] Favorites ----------- Power Light Nuclear Core Engine Light Ion Engine Power Core Light Nuclear Core Propulsion Flight Unit Wheel Wheel Hover Unit Hover Unit Flight Unit Flight Unit Utility Huge Storage Unit Device Structural Scanner Storage Huge Storage Unit Processor Targeting Computer Weapon Light Assault Rifle Energy Gun Small Laser Ballistic Gun Light Assault Rifle Special Melee Weapon Datajack Build | -11 -10 ------- Run | Yrd Mat Slots Evolved . | . . Power . | . . Propulsion . | . . Utility . | . . Weapon . | . . Parts Attached 21 | 5 16 Power 5 | 1 4 Engine 4 | 1 3 Core 1 | . 1 Reactor . | . . Propulsion 5 | 2 3 Treads . | . . Leg . | . . Wheel 2 | 2 . Hover 1 | . 1 Flight 2 | . 2 Utility 8 | . 8 Device 3 | . 3 Storage 3 | . 3 Processor 2 | . 2 Hackware . | . . Protection . | . . Artifact . | . . Weapon 3 | 2 1 Energy Gun 1 | 1 . Energy Cannon . | . . Ballistic Gun 1 | 1 . Ballistic Cannon . | . . Launcher . | . . Special Weapon . | . . Impact Weapon . | . . Slashing Weapon . | . . Piercing Weapon . | . . Special Melee Weapon 1 | . 1 Unidentified Prototypes . | . . Parts Lost 7 | . 7 Power 2 | . 2 Propulsion 4 | . 4 Utility . | . . Weapon 1 | . 1 Highest Loss Streak 6 | . 6 To Critical Strikes 1 | . 1 Average Backups 6 | 2 7 Power 1 | . 1 Propulsion 1 | 1 1 Utility 3 | . 4 Weapon . | . . Tool/Special . | . . Unused Backups 7 | . 7 Power . | . . Propulsion 2 | . 2 Utility 4 | . 4 Weapon 1 | . 1 Tool/Special . | . . Average Slot Usage (%) 85 | . 85 Engine 2 | . 2 Core 11 | . 11 Wheel 3 | . 3 Hover 2 | . 2 Flight 21 | . 21 Device 8 | . 8 Storage 11 | . 11 Processor 7 | . 7 Energy Gun 1 | . 1 Ballistic Gun 13 | . 13 Peak Build Rating 10 | 5 10 Average Rating 7 | 3 8 On Entrance 2 | . 5 Avg Prop Armor Cover (%) 5 | . 5 Naked Turns . | . . Heaviest Build 89 | 5 89 Greatest Support 20 | 20 20 Greatest Overweight (x) 29 | . 29 Average Overweight (x) 2 | . 3 Largest Inventory Capacity 25 | 5 25 Average Capacity 19 | 5 20 Most Carried 9 | 5 9 Average Carried 6 | 2 7 Final Capacity 25 | 5 25 Final Carried 7 | 4 7 Class Distribution -------------------- 100% | Mutant Dominant Class ---------------- Mutant | -10/Materials Resources | -11 -10 ----------- Run | Yrd Mat Matter Collected 635 | 253 382 Remotely . | . . Salvage Created 357 | 39 318 Parts 31 | 2 29 Haulers Intercepted . | . . Recyclers Shooed . | . . Parts Field Recycled . | . . Retrieved Matter . | . . Parts Self-Destructed . | . . Prevented . | . . Parts Restored . | . . Kills | -11 -10 ------- Run | Yrd Mat Combat Hostiles Destroyed 11 | 1 10 Guns 11 | 1 10 Classes Destroyed 4 | 1 3 Worker 1 | . 1 Watcher 2 | . 2 Swarmer 6 | . 6 Grunt 5 | 1 4 Best Kill Streak 3 | 1 3 Combat Bots Only 3 | 1 3 Max Kills in Single Turn 1 | 1 1 Gunslinging . | . . Exploded . | . . Melee . | . . Uniques/NPCs Destroyed . | . . Combat | -11 -10 -------- Run | Yrd Mat Hostile Shots Fired 123 | 3 120 Missed 20 | 1 19 Hits 103 | 2 101 Projectile 103 | 2 101 Critical Strikes 1 | . 1 Damage Taken 682 | 17 665 Core 251 | 9 242 Absorbed by Shields . | . . Ignored by Resistances 220 | 5 215 Core Remaining (%) 96 | 96 . Volleys Fired 70 | 3 67 Largest 2 | 1 2 Hottest 60 | 20 60 Shots Fired 82 | 3 79 Gun 82 | 3 79 Cannon . | . . Launcher . | . . Special . | . . Kinetic 70 | 3 67 Thermal 12 | . 12 Explosive . | . . Electromagnetic . | . . Robot Hit Streak 28 | 3 28 Robot Miss Streak 3 | . 3 Penetration Max . | . . Secondary Targets 2 | . 2 Max Gunslinging Chain 1 | . 1 Shots Hit Robots 58 | 3 55 Core Hits 30 | 3 27 Critical Kills . | . . Critical Parts Destroyed 1 | . 1 Critical Strikes 1 | . 1 Destroy 1 | . 1 Melee Attacks 2 | . 2 Impact . | . . Slashing . | . . Piercing . | . . Sneak Attacks 1 | . 1 Combat Hostiles . | . . Follow-up Attacks . | . . Damage Inflicted 499 | 19 480 Guns 496 | 19 477 Cannons . | . . Explosions . | . . Melee . | . . Ramming 3 | . 3 Kinetic 394 | 19 375 Thermal 102 | . 102 Explosive . | . . Electromagnetic . | . . Impact . | . . Slashing . | . . Piercing . | . . Highest Corruption . | . . Average Corruption . | . . Corruption Purged . | . . Corruption Blocked . | . . Overload Shots . | . . Overflow Damage . | . . Projectiles . | . . Explosions . | . . Melee . | . . Knockbacks . | . . Impact . | . . Kinetic . | . . Secondary . | . . Self-Inflicted Damage 1 | . 1 Shots . | . . Rammed 1 | . 1 Targets Rammed 1 | . 1 Kicked . | . . Crushed . | . . Highest Temperature 58 | 6 58 Average Temperature 12 | 6 12 Received Heat Transfer 114 | 12 102 Siege Activations . | . . Martial Activations . | . . Shielding Activations . | . . Robots Disrupted . | . . Combat Hostiles . | . . Robots Corrupted . | . . Combat Hostiles . | . . Parts Fried . | . . Impact Corruptions . | . . Robots Melted . | . . Combat Hostiles . | . . Parts Melted . | . . Heat Transferred 225 | . 225 Parts Sabotaged . | . . Parts Stolen . | . . Parts Stripped . | . . Power Chain Reactions . | . . Alert | -11 -10 ------- Run | Yrd Mat Maximum Alert Level . | . . Low Security (%) 100 | 100 100 Level 1 . | . . Level 2 . | . . Level 3 . | . . Level 4 . | . . Level 5 . | . . High Security . | . . Max Security . | . . Peak Influence 95 | 20 95 Initial 5 | . 5 Average 10 | 3 11 Influence Increases 300 | 20 280 Destroy 0b10 Robot/C 220 | 20 200 Destroy 0b10 Robot/NC 15 | . 15 Destroy Leader 34 | . 34 Successful Hack 16 | . 16 Partial Spotted 15 | . 15 Influence Decreases 300 | 10 290 Entered New Map 5 | . 5 Time Decay 285 | 10 275 Lost Part 10 | . 10 Squads Dispatched . | . . Investigation . | . . Extermination . | . . Reinforcement . | . . Assault . | . . Garrison . | . . Intercept . | . . Searches Triggered . | . . Construction Impeded . | . . Haulers Reinforced . | . . Active Scanning Responses . | . . Cargo Convoy Interrupts . | . . Stealth | -11 -10 --------- Run | Yrd Mat Distress Signals 2 | . 2 Communications Jammed . | . . Distress Signals . | . . Times Spotted 25 | 1 24 Peak Tracking Total 4 | . 4 Tactical Retreats . | . . Traps | -11 -10 ------- Run | Yrd Mat Traps Triggered . | . . Indirectly . | . . Trap Hack Attempts . | . . Triggered . | . . Disarmed . | . . Reprogrammed . | . . Reused . | . . Traps Extracted . | . . Installed . | . . Triggered . | . . Machines | -11 -10 ---------- Run | Yrd Mat Machines Disabled . | . . Max in Single Turn . | . . Machines Repaired . | . . Machines Dismantled . | . . Machines Sabotaged . | . . Overloaded Fab Kills . | . . Hacking | -11 -10 --------- Run | Yrd Mat Machines Accessed 3 | . 3 Terminals 3 | . 3 Fabricators . | . . Repair Stations . | . . Recycling Units . | . . Scanalyzers . | . . Garrison Access . | . . Total Hacks 12 | . 12 Successful 11 | . 11 Failed 1 | . 1 Catastrophic . | . . Database Lockouts . | . . Manual . | . . Terminals 12 | . 12 Fabricators . | . . Repair Stations . | . . Recycling Units . | . . Scanalyzers . | . . Garrison Access . | . . Terminal Hacks 11 | . 11 Record 1 | . 1 Robot Analysis 1 | . 1 Terminal Index 1 | . 1 Alert Level 3 | . 3 Locate Traps 1 | . 1 Dispatch Records 1 | . 1 Security Status 1 | . 1 Patrol Status 1 | . 1 Registered Components 1 | . 1 Fabricator Hacks . | . . Repair Station Hacks . | . . Recycling Unit Hacks . | . . Scanalyzer . | . . Garrison Access Hacks . | . . Unauthorized Hacks . | . . Terminals . | . . Fabricators . | . . Repair Stations . | . . Recycling Units . | . . Scanalyzers . | . . Garrison Access . | . . Data Cores Recovered . | . . Used . | . . Hacking Detections 1 | . 1 Full Trace Events 1 | . 1 Feedback Events . | . . Feedback Blocked . | . . Robot Schematics Acquired . | . . Robots Built . | . . Authchips . | . . Time . | . . Total Robot Build Rating . | . . Part Schematics Acquired . | . . Parts Built . | . . Authchips . | . . Time . | . . Total Part Build Rating . | . . Part Studies Acquired . | . . Parts Repaired . | . . Time . | . . Parts Recycled . | . . Recycled Matter . | . . Retrieved Matter . | . . Retrieved Components . | . . Parts Scanalyzed . | . . Part Schematics Acquired . | . . Parts Damaged . | . . Bothacking | -11 -10 ------------ Run | Yrd Mat Used RIF Installer . | . . Robots Hacked 1 | . 1 Non-combat . | . . Combat 1 | . 1 Robot Hacks Applied 1 | . 1 parse_system 1 | . 1 Relay Couplers Released . | . . Fabnet Peak Effective % . | . . Robots Rewired . | . . Allies Hacked . | . . Hacks Repelled . | . . Allies | -11 -10 -------- Run | Yrd Mat Total Allies . | . . Largest Group . | . . Highest-Rated Group . | . . Highest-Rated Ally . | . . Total Orders . | . . Ally Attacks . | . . Total Damage . | . . Kills . | . . Allies Corrupted . | . . Allies Melted . | . . Intel | -11 -10 ------- Run | Yrd Mat Active Infowar (turns) 1126 | . 1126 Sensors 267 | . 267 Structural 859 | . 859 Robot Analysis Total 1 | . 1 Derelict Logs Recovered . | . . Drone Launches . | . . Drone Recoveries . | . . Exploration | -11 -10 ------------- Run | Yrd Mat Turns Passed 2050 | 117 1933 Spaces Moved 633 | 130 503 Core 20 | 19 1 Treads . | . . Legs . | . . Wheels 293 | 111 182 Hover 136 | . 136 Flight 184 | . 184 Fastest Speed 50 | 50 60 Average Speed 285 | 75 339 Slowest Speed 1500 | 80 1500 Overloaded Moves . | . . Propulsion Burnouts . | . . Robots Hopped . | . . Potential Cave-ins . | . . Cave-ins Triggered . | . . Exploration Rate (%) 30 | 8 52 Regions Visited 1 Branch Regions . Pre-discovered Areas . | . . Known Exits Taken . | . . Unknown Exits Taken 1 | 1 . Scrap Searched . | . . Spaces Dug . | . . Terrain Destroyed . | . . Melee . | . . Projectile . | . . AOE . | . . Terrain Rammed . | . . Walls Destroyed . | . . Machines Disabled . | . . Actions | -11 -10 --------- Run | Yrd Mat Total 805 | 145 660 Wait 32 | . 32 Move 632 | 129 503 Hop . | . . Pick Up 25 | 7 18 Fast Attach 7 | 3 4 Attach 4 | 2 2 Detach . | . . Swap 18 | . 18 Drop 14 | 1 13 Fire 70 | 3 67 Melee 2 | . 2 Ram 1 | . 1 Kick . | . . Crush . | . . Escape Stasis . | . . Rewire . | . . Trap . | . . Miscellaneous . | . . Route ------- -11/Scrapyard -10/Materials (discovered 2 exits: [*Mat] / [*Min]) History --------- Turn | Location | Event 2 | -11/Scrapyard | Met Revision 17 74 | -11/Scrapyard | Discovered new exit (range 8) 118 | -11/Scrapyard | Entered Materials 318 | -10/Materials | Build established: Mutant 336 | -10/Materials | Discovered new exit (range 11) 964 | -10/Materials | Discovered new exit (range 10) 2014 | -10/Materials | Core integrity fell below 50% 2036 | -10/Materials | Core integrity fell below 20% 2051 | -10/Materials | Destroyed by S-10 Pest with Light Assault Rifle Last Messages --------------- map in exchange for smaller text? Consider selecting a different UI Layout in the option menu. Lgt. Assault Rifle destroyed. Lgt. Nuclear Core destroyed. Flight Unit destroyed. K-01 Serf destroyed. K-01 Serf collects debris. S-10 Pest destroyed. Hover Unit destroyed. K-01 Serf collects debris. Flight Unit destroyed. K-01 Serf collects debris. R-06 Scavenger collects Wheel. R-06 Scavenger collects Med. Matter Pod. R-06 Scavenger collects Wheel. R-06 Scavenger collects Lgt. Assault Rifle. Critical hit (Destroy). Ion Engine destroyed. R-06 Scavenger collects Flight Unit. Map ----- +----------------------------------------------------+ | ????????????????????????## # # """ | | ????????????????????????## """ """ + + """ | | ????????????????????????## """ """ # # | | ????????????????????????## """ """ # ######### | | ????????????????????????## # #! | | ????????????????????????##! # # """" | | ????????????????????????############ # """" | | ????????????????????????############ # """" | | ???????????????????????????######### +^ | | ???????????????????????????## # """" | | ???????????????????????????## # """" | | ??????????????############### # """" | | ?????????????? ############## ######## | | ?????????????? ###########+###+ | | ?????????????? ### /# | | ?????????????? ### =! *# | | ???????????????############## ### =! + | | ????????????? ############### ### *#+###+ | | ????????????? ############### ### # | | ????????????? # k ### ########### | | ????????????? # k ### #########?# | | ????????????? # ### ## #### | | ????????? # ? # ### ## #### | | ????????? # # r% ### + | | ????????? + + sk r ### ## #### | | ????????? # # s% @ + ## #### | | ????????? # ? ################+##### ####?###### | | ????????????? ############# # ####??????? | | ??????????????????????????#""" # ##????????? | | ?????????????????????????##""" # #?????????? | | ?????????????????????????##""" # #?????????? | | ?????????????????????????## # #?????????? | | ??????[???????????????????#""" # #?????????? | | ??????????????????????????#""" # #?????????? | | ??????????????????????????#""" # #?????????? | | ??????????????????????????# + #?????????? | | ??????????????????????????########## #?????????? | | ???????????????????????????????????# #?????????? | | ?????????????????????????########??#^#?????????? | | ?????????????????????????# #??# #?????????? | | ?????????????????????????# "" #### #?????????? | | ?????????????????????????# T" # #?????????? | | ?????????????????????????# "" # #######???? | | ?????????????????????????# # # #???? | | ?????????????????????????# """ # #???? | | ?????????????????????????# """ + T #???? | | ?????????????????????????# """ # #???? | | ?????????????????????????# ###### #???? | | ?????????????????????????# """ #????## ###### | | ?????????????????????????# """ #?????# # | +----------------------------------------------------+ Best States ------------- Heat Dissipation 39 Energy Generation 14 Energy Capacity 500 Matter Stores 325 Matter Capacity 450 Sight Range 16 Robot Scan Range 14 Terrain Scan Density 10 Resistance: KI 20 Resistance: TH 20 Resistance: EX 20 Resistance: EM 20 Resistance: I 20 Resistance: S 20 Resistance: P 20 Evasion (%) 50 Targeting Accuracy 5 Offensive Hacking 10 Item Schematics ----------------- None Robot Schematics ------------------ None Fabricated ------------ Nothing Repaired ---------- Nothing Studied --------- None Alien Tech Used ----------------- None Achievements -------------- DATA ERROR: Steam Global Achievement% For Emergencies Only Challenges ------------ None Game ------ Seed PointyHellfireBeacon Manual? 0 Play Time 00:21:03 Cumulative 0.7 hours Start 2025.12.20 @ 00:02:58 End 2025.12.20 @ 00:22:09 Sessions 1 Manual Loads 0 Difficulty Adventurer Special Mode None Game No. 3 Rogue 0 Adventurer 3 Explorer 0 Win Type - Total 0 Types 0/0/0/0/0/0/0/0/0/0 Lore% 0 Gallery% 2 Achievement% 2 Wizard Run 0 Options --------- Layout 1 ASCII 0 Keyboard 0 Movement Numpad Keybinds 0 Fullscreen 1 Font 24/Tallcaps Map View 50x35 Zoom Use 0% Tactical HUD 0 Map Filters NONE Filters NONE Steam 1 RUN: 63565e94-6e6a-469b-b2d6-a58929e7e639